fUST/lending_fUST_20240820
["ID","MTS","AMOUNT","RATE_DAILY","PERIOD"]
[335356130,1724157039305,-500.0,0.00013699,2]
[335356131,1724157039315,-500.0,0.00013699,2]
[335356132,1724157039325,-500.0,0.00013699,2]
[335356133,1724157039334,-500.0,0.00013699,2]
[335356134,1724157039343,-500.0,0.00013699,2]
[335356135,1724157039353,-500.0,0.00013699,2]
[335356136,1724157039362,-500.0,0.00013699,2]
[335356137,1724157039373,-500.0,0.00013699,2]
[335356138,1724157039383,-500.0,0.00013699,2]
[335356139,1724157039392,-500.0,0.00013699,2]
[335356140,1724157039402,-500.0,0.00013699,2]
[335356141,1724157039411,-500.0,0.00013699,2]
[335356142,1724157039420,-500.0,0.00013699,2]
[335356143,1724157039430,-500.0,0.00013699,2]
[335356144,1724157039440,-500.0,0.00013699,2]
[335356145,1724157039449,-500.0,0.00013699,2]
[335356146,1724157039459,-500.0,0.00013699,2]
[335356147,1724157039468,-500.0,0.00013699,2]
[335356148,1724157039477,-500.0,0.00013699,2]
[335356149,1724157039486,-500.0,0.00013699,2]
[335356150,1724157039495,-500.0,0.00013699,2]
[335356151,1724157039504,-336.16564234,0.00013699,2]
[335356152,1724157039514,-500.0,0.00013699,2]
[335356153,1724157039523,-500.0,0.00013699,2]
[335356154,1724157039532,-500.0,0.00013699,2]
[335356155,1724157039542,-500.0,0.00013699,2]
[335356156,1724157039552,-500.0,0.00013699,2]
[335356157,1724157039562,-500.0,0.00013699,2]
[335356158,1724157039572,-500.0,0.00013699,2]
[335356159,1724157039582,-500.0,0.00013699,2]
[335356160,1724157039591,-500.0,0.00013699,2]
[335356161,1724157039601,-500.0,0.00013699,2]
[335356162,1724157039614,-500.0,0.00013699,2]
[335356163,1724157039625,-500.0,0.00013699,2]
[335356164,1724157039634,-500.0,0.00013699,2]
[335356165,1724157039643,-500.0,0.00013699,2]
[335356166,1724157039654,-500.0,0.00013699,2]
[335356167,1724157039666,-500.0,0.00013699,2]
[335356168,1724157039677,-500.0,0.00013699,2]
[335356169,1724157039687,-500.0,0.00013699,2]
[335356170,1724157039699,-500.0,0.00013699,2]
[335356171,1724157039711,-500.0,0.00013699,2]
[335356172,1724157039721,-500.0,0.00013699,2]
[335356173,1724157039732,-500.0,0.00013699,2]
[335356174,1724157039742,-500.0,0.00013699,2]
[335356175,1724157039752,-200.00000002,0.00013699,2]
[335356176,1724157039763,-500.0,0.00013699,2]
[335356177,1724157039773,-194.83065114,0.00013699,2]
[335356178,1724157039783,-191613.97456334,0.00014,5]
[335356179,1724157039793,-1000.0,0.00014,14]
[335356180,1724157039803,-20718.20140944,0.00014,4]
[335356181,1724157039817,-265.40508591,0.00014245,2]
[335356182,1724157039829,-154.76012181,0.00014245,2]
[335356183,1724157039840,-203.409657,0.00014247,2]
[335356184,1724157039851,-568.5174,0.00014247,2]
[335356185,1724157039860,-237.35486148,0.00015,2]
[335356186,1724157039871,-201.06641908,0.00015042,2]
[335356187,1724157039885,-5355.96899675,0.00015551,2]
[335356188,1724157039898,-249.928033,0.0001589,2]
[335356189,1724157039909,-738.60019093,0.000159,2]
[335356190,1724157039920,-1000.0,0.00016,16]
[335356191,1724157039931,-77036.6251108,0.00016428,2]
[335356192,1724157039943,-500.8929892,0.00016438,2]
[335356193,1724157039954,-514.46023224,0.00016438,2]
[335356194,1724157039966,-500.0,0.00016438,2]
[335356195,1724157039978,-500.0,0.00016438,2]
[335356196,1724157039988,-500.0,0.00016438,2]
[335356197,1724157039998,-500.0,0.00016438,2]
[335356198,1724157040009,-500.0,0.00016438,2]
[335356199,1724157040020,-501.58720414,0.00016438,2]
[335356200,1724157040030,-177.81892764,0.00016438,2]
[335356201,1724157040040,-500.0,0.00016438,2]
[335356202,1724157040051,-500.0,0.00016438,2]
[335356203,1724157040062,-506.87953148,0.00016438,2]
[335356204,1724157040075,-504.52095337,0.00016438,2]
[335356205,1724157040086,-500.0,0.00016438,2]
[335356206,1724157040097,-510.9339362,0.00016438,2]
[335356207,1724157040108,-360.58791304,0.00016438,2]
[335356208,1724157040119,-500.0,0.00016438,2]
[335356209,1724157040130,-501.56320326,0.00016438,2]
[335356210,1724157040142,-500.0,0.00016438,2]
[335356211,1724157040152,-420.99149762,0.00016438,2]
[335356212,1724157040163,-501.62857219,0.00016438,2]
[335356213,1724157040173,-500.0,0.00016438,2]
[335356214,1724157040185,-503.60765118,0.00016438,2]
[335356216,1724157040194,-500.0,0.00016438,2]
[335356218,1724157040204,-500.0,0.00016438,2]
[335356220,1724157040213,-500.0,0.00016438,2]
[335356222,1724157040223,-500.30739755,0.00016438,2]
[335356224,1724157040233,-500.33299723,0.00016438,2]
[335356225,1724157040243,-571.72864269,0.00016438,2]
[335356226,1724157040253,-500.0,0.00016438,2]
[335356227,1724157040262,-500.0,0.00016438,2]
[335356228,1724157040271,-504.05457436,0.00016438,2]
[335356229,1724157040281,-500.0,0.00016438,2]
[335356230,1724157040291,-500.0,0.00016438,2]
[335356231,1724157040300,-500.0,0.00016438,2]
[335356232,1724157040309,-512.41169414,0.00016438,2]
[335356233,1724157040319,-500.0,0.00016438,2]
[335356234,1724157040330,-500.0,0.00016438,2]
[335356235,1724157040339,-500.0,0.00016438,2]
[335356237,1724157040348,-500.0,0.00016438,2]
[335356238,1724157040358,-500.0,0.00016438,2]
[335356240,1724157040369,-500.0,0.00016438,2]
[335356241,1724157040379,-500.0,0.00016438,2]
[335356242,1724157040389,-502.67082172,0.00016438,2]
[335356243,1724157040399,-500.0,0.00016438,2]
[335356244,1724157040408,-2000.0,0.00016438,2]
[335356245,1724157040418,-502.75092201,0.00016438,2]
[335356246,1724157040427,-150.0,0.00016438,2]
[335356247,1724157040436,-500.0,0.00016438,2]
[335356248,1724157040446,-500.0,0.00016438,2]
[335356249,1724157040455,-500.0,0.00016438,2]
[335356251,1724157040465,-500.0,0.00016438,2]
[335356252,1724157040475,-509.94578498,0.00016438,2]
[335356253,1724157040484,-500.0,0.00016438,2]
[335356254,1724157040494,-502.02837971,0.00016438,2]
[335356255,1724157040503,-500.0,0.00016438,2]
[335356256,1724157040513,-500.0,0.00016438,2]
[335356258,1724157040523,-500.0,0.00016438,2]
[335356259,1724157040532,-500.0,0.00016438,2]
[335356260,1724157040542,-500.0,0.00016438,2]
[335356261,1724157040551,-500.0,0.00016438,2]
[335356262,1724157040561,-500.0,0.00016438,2]
[335356263,1724157040571,-500.0,0.00016438,2]
[335356265,1724157040581,-500.0,0.00016438,2]
[335356267,1724157040591,-512.16275258,0.00016438,2]
[335356268,1724157040600,-747.19,0.00016438,2]
[335356269,1724157040610,-506.05463301,0.00016438,2]
[335356270,1724157040619,-500.0,0.00016438,2]
[335356271,1724157040629,-500.0,0.00016438,2]
[335356272,1724157040638,-200.0,0.00016438,2]
[335356273,1724157040648,-500.0,0.00016438,2]
[335356274,1724157040660,-500.0,0.00016438,2]
[335356275,1724157040671,-500.0,0.00016438,2]
[335356276,1724157040682,-512.22303326,0.00016438,2]
[335356278,1724157040692,-500.0,0.00016438,2]
[335356280,1724157040702,-500.0,0.00016438,2]
[335356281,1724157040711,-500.0,0.00016438,2]
[335356283,1724157040723,-500.0,0.00016438,2]
[335356285,1724157040732,-500.0,0.00016438,2]
[335356286,1724157040742,-500.0,0.00016438,2]
[335356288,1724157040751,-500.0,0.00016438,2]
[335356290,1724157040762,-500.0,0.00016438,2]
[335356291,1724157040771,-492.83835176,0.00016438,2]
[335356293,1724157040780,-500.0,0.00016438,2]
[335356295,1724157040789,-500.0,0.00016438,2]
[335356296,1724157040799,-500.0,0.00016438,2]
[335356297,1724157040808,-500.0,0.00016438,2]
[335356298,1724157040818,-500.0,0.00016438,2]
[335356299,1724157040828,-500.0,0.00016438,2]
[335356300,1724157040838,-500.0,0.00016438,2]
[335356301,1724157040847,-500.0,0.00016438,2]
[335356302,1724157040856,-504.00718194,0.00016438,2]
[335356303,1724157040866,-500.41807037,0.00016438,2]
[335356304,1724157040879,-500.0,0.00016438,2]
[335356305,1724157040889,-500.0,0.00016438,2]
[335356306,1724157040898,-501.72262432,0.00016438,2]
[335356307,1724157040908,-500.0,0.00016438,2]
[335356308,1724157040919,-508.13774387,0.00016438,2]
[335356309,1724157040928,-503.96328821,0.00016438,2]
[335356310,1724157040937,-500.0,0.00016438,2]
[335356311,1724157040947,-500.0,0.00016438,2]
[335356312,1724157040958,-501.37109774,0.00016438,2]
[335356313,1724157040969,-502.70414768,0.00016438,2]
[335356314,1724157040979,-500.0,0.00016438,2]
[335356315,1724157040990,-500.0,0.00016438,2]
[335356316,1724157041001,-500.0,0.00016438,2]
[335356317,1724157041013,-500.0,0.00016438,2]
[335356318,1724157041023,-500.0,0.00016438,2]
[335356319,1724157041034,-502.6666143,0.00016438,2]
[335356320,1724157041044,-503.51181384,0.00016438,2]
[335356321,1724157041055,-500.98672507,0.00016438,2]
[335356322,1724157041065,-612.4,0.00016438,2]
[335356323,1724157041076,-500.9631803,0.00016438,2]
[335356324,1724157041088,-500.0,0.00016438,2]
[335356325,1724157041099,-500.0,0.00016438,2]
[335356326,1724157041111,-503.58228305,0.00016438,2]
[335356327,1724157041122,-500.0,0.00016438,2]
[335356328,1724157041133,-500.0,0.00016438,2]
[335356329,1724157041146,-500.0,0.00016438,2]
[335356330,1724157041158,-500.0,0.00016438,2]
[335356331,1724157041169,-500.0,0.00016438,2]
[335356332,1724157041180,-500.0,0.00016438,2]
[335356333,1724157041192,-500.0,0.00016438,2]
[335356334,1724157041203,-500.0,0.00016438,2]
[335356335,1724157041214,-500.0,0.00016438,2]
[335356336,1724157041226,-500.0,0.00016438,2]
[335356337,1724157041237,-500.0,0.00016438,2]
[335356338,1724157041247,-503.56559324,0.00016438,2]
[335356339,1724157041259,-502.04518582,0.00016438,2]
[335356340,1724157041271,-500.0,0.00016438,2]
[335356341,1724157041282,-500.0,0.00016438,2]
[335356342,1724157041295,-503.30289728,0.00016438,2]
[335356343,1724157041305,-502.79483169,0.00016438,2]
[335356344,1724157041316,-500.0,0.00016438,2]
[335356345,1724157041329,-500.0,0.00016438,2]
[335356346,1724157041339,-501.97462119,0.00016438,2]
[335356347,1724157041351,-500.0,0.00016438,2]
[335356348,1724157041362,-500.0,0.00016438,2]
[335356349,1724157041372,-500.0,0.00016438,2]
[335356350,1724157041382,-503.54449928,0.00016438,2]
[335356351,1724157041393,-500.0,0.00016438,2]
[335356352,1724157041403,-500.0,0.00016438,2]
[335356353,1724157041414,-500.0,0.00016438,2]
[335356354,1724157041425,-500.0,0.00016438,2]
[335356355,1724157041436,-501.6430387,0.00016438,2]
[335356356,1724157041446,-554.57895789,0.00016438,2]
[335356357,1724157041457,-503.76931592,0.00016438,2]
[335356358,1724157041599,-503.06181632,0.00016438,2]
[335356359,1724157041609,-500.0,0.00016438,2]
[335356360,1724157041620,-500.0,0.00016438,2]
[335356361,1724157041631,-502.67785879,0.00016438,2]
[335356362,1724157041642,-500.0,0.00016438,2]
[335356363,1724157041652,-500.0,0.00016438,2]
[335356364,1724157041663,-501.32968299,0.00016438,2]
[335356365,1724157041673,-507.616974,0.00016438,2]
[335356366,1724157041686,-500.0,0.00016438,2]
[335356367,1724157041696,-504.0261039,0.00016438,2]
[335356368,1724157041707,-500.0,0.00016438,2]
[335356369,1724157041716,-501.27584992,0.00016438,2]
[335356370,1724157041726,-501.84685519,0.00016438,2]
[335356371,1724157041736,-500.0,0.00016438,2]
[335356372,1724157041746,-500.0,0.00016438,2]
[335356373,1724157041757,-500.0,0.00016438,2]
[335356374,1724157041767,-500.0,0.00016438,2]
[335356375,1724157041777,-501.97523879,0.00016438,2]
[335356376,1724157041787,-505.10556489,0.00016438,2]
[335356377,1724157041797,-453.64410196,0.00016438,2]
[335356378,1724157041808,-502.07168665,0.00016438,2]
[335356379,1724157041819,-500.0,0.00016438,2]
[335356380,1724157041830,-500.36598369,0.00016438,2]
[335356381,1724157041841,-512.06790887,0.00016438,2]
[335356382,1724157041851,-505.48695279,0.00016438,2]
[335356383,1724157041861,-500.0,0.00016438,2]
[335356384,1724157041874,-500.0,0.00016438,2]
[335356385,1724157041888,-500.0,0.00016438,2]
[335356386,1724157041899,-500.0,0.00016438,2]
[335356387,1724157041911,-644.95,0.00016438,2]
[335356388,1724157041924,-1527.65,0.00016438,2]
[335356389,1724157041934,-500.0,0.00016438,2]
[335356390,1724157041944,-500.0,0.00016438,2]
[335356391,1724157041956,-500.0,0.00016438,2]
[335356392,1724157041967,-500.0,0.00016438,2]
[335356393,1724157041979,-500.0,0.00016438,2]
[335356394,1724157041990,-500.0,0.00016438,2]
[335356395,1724157042002,-505.77653679,0.00016438,2]
[335356396,1724157042011,-500.0,0.00016438,2]
[335356397,1724157042022,-500.0,0.00016438,2]
[335356398,1724157042033,-565.6,0.00016438,2]
[335356399,1724157042043,-500.0,0.00016438,2]
[335356400,1724157042052,-500.0,0.00016438,2]
[335356401,1724157042064,-500.0,0.00016438,2]
[335356402,1724157042076,-500.0,0.00016438,2]
[335356403,1724157042089,-500.0,0.00016438,2]
[335356404,1724157042100,-500.0,0.00016438,2]
[335356405,1724157042110,-500.0,0.00016438,2]
[335356406,1724157042122,-513.70100758,0.00016438,2]
[335356407,1724157042134,-500.0,0.00016438,2]
[335356408,1724157042146,-500.0,0.00016438,2]
[335356409,1724157042158,-500.0,0.00016438,2]
[335356410,1724157042168,-827.42,0.00016438,2]
[335356411,1724157042180,-158.59978058,0.00016438,2]
[335356412,1724157042193,-511.70509182,0.00016438,2]
[335356413,1724157042203,-500.0,0.00016438,2]
[335356414,1724157042214,-500.0,0.00016438,2]
[335356415,1724157042224,-500.0,0.00016438,2]
[335356416,1724157042236,-501.77593548,0.00016438,2]
[335356417,1724157042247,-500.0,0.00016438,2]
[335356418,1724157042258,-500.0,0.00016438,2]
[335356419,1724157042269,-500.0,0.00016438,2]
[335356420,1724157042279,-516.5020625,0.00016438,2]
[335356421,1724157042291,-500.0,0.00016438,2]
[335356422,1724157042301,-462.83761311,0.00016438,2]
[335356423,1724157042311,-500.0,0.00016438,2]
[335356424,1724157042321,-500.0,0.00016438,2]
[335356425,1724157042334,-500.0,0.00016438,2]
[335356426,1724157042345,-500.0,0.00016438,2]
[335356427,1724157042358,-500.0,0.00016438,2]
[335356428,1724157042367,-500.0,0.00016438,2]
[335356429,1724157042379,-500.0,0.00016438,2]
[335356430,1724157042391,-500.0,0.00016438,2]
[335356431,1724157042402,-500.0,0.00016438,2]
[335356432,1724157042412,-500.0,0.00016438,2]
[335356433,1724157042422,-500.0,0.00016438,2]
[335356434,1724157042433,-500.0,0.00016438,2]
[335356435,1724157042443,-500.0,0.00016438,2]
[335356436,1724157042454,-500.0,0.00016438,2]
[335356437,1724157042465,-500.0,0.00016438,2]
[335356438,1724157042475,-500.0,0.00016438,2]
[335356439,1724157042485,-580.2306903,0.00016438,2]
[335356440,1724157042495,-500.0,0.00016438,2]
[335356441,1724157042504,-500.0,0.00016438,2]
[335356442,1724157042513,-500.0,0.00016438,2]
[335356443,1724157042523,-500.0,0.00016438,2]
[335356444,1724157042532,-500.0,0.00016438,2]
[335356445,1724157042542,-500.0,0.00016438,2]
[335356446,1724157042552,-578.95351904,0.00016438,2]
[335356447,1724157042561,-500.0,0.00016438,2]
[335356448,1724157042570,-500.0,0.00016438,2]
[335356449,1724157042581,-513.96222773,0.00016438,2]
[335356450,1724157042591,-500.0,0.00016438,2]
[335356451,1724157042601,-1000.0,0.00016438,2]
[335356452,1724157042610,-500.0,0.00016438,2]
[335356453,1724157042620,-500.0,0.00016438,2]
[335356454,1724157042630,-500.0,0.00016438,2]
[335356455,1724157042640,-500.0,0.00016438,2]
[335356456,1724157042650,-500.0,0.00016438,2]
[335356457,1724157042659,-500.0,0.00016438,2]
[335356458,1724157042669,-500.0,0.00016438,2]
[335356459,1724157042678,-500.0,0.00016438,2]
[335356460,1724157042688,-500.0,0.00016438,2]
[335356461,1724157042698,-1900.07,0.00016438,2]
[335356462,1724157042707,-500.0,0.00016438,2]
[335356463,1724157042717,-500.0,0.00016438,2]
[335356464,1724157042726,-500.0,0.00016438,2]
[335356465,1724157042736,-500.0,0.00016438,2]
[335356466,1724157042745,-500.0,0.00016438,2]
[335356467,1724157042755,-500.0,0.00016438,2]
[335356468,1724157042764,-500.0,0.00016438,2]
[335356469,1724157042773,-500.0,0.00016438,2]
[335356470,1724157042783,-500.0,0.00016438,2]
[335356471,1724157042793,-500.0,0.00016438,2]
[335356472,1724157042803,-500.0,0.00016438,2]
[335356473,1724157042812,-500.0,0.00016438,2]
[335356474,1724157042822,-500.0,0.00016438,2]
[335356475,1724157042831,-500.0,0.00016438,2]
[335356476,1724157042841,-500.0,0.00016438,2]
[335356477,1724157042850,-500.0,0.00016438,2]
[335356478,1724157042860,-500.0,0.00016438,2]
[335356479,1724157042869,-573.51904403,0.00016438,2]
[335356480,1724157042884,-982.09,0.00016438,2]
[335356481,1724157042893,-500.0,0.00016438,2]
[335356482,1724157042903,-500.0,0.00016438,2]
[335356483,1724157042913,-452.1,0.00016438,2]
[335356485,1724157042924,-500.0,0.00016438,2]
[335356487,1724157042934,-526.11025138,0.00016438,2]
[335356488,1724157042943,-500.0,0.00016438,2]
[335356489,1724157042955,-258.3,0.00016438,2]
[335356490,1724157042964,-500.0,0.00016438,2]
[335356491,1724157042974,-500.0,0.00016438,2]
[335356492,1724157042983,-500.0,0.00016438,2]
[335356493,1724157042992,-994.14,0.00016438,2]
[335356494,1724157043002,-500.0,0.00016438,2]
[335356495,1724157043011,-500.0,0.00016438,2]
[335356496,1724157043021,-500.0,0.00016438,2]
[335356497,1724157043030,-500.0,0.00016438,2]
[335356498,1724157043040,-1254.91,0.00016438,2]
[335356499,1724157043049,-252.49527329,0.00016438,2]
[335356500,1724157043059,-500.0,0.00016438,2]
[335356501,1724157043068,-500.0,0.00016438,2]
[335356502,1724157043079,-500.0,0.00016438,2]
[335356504,1724157043088,-500.0,0.00016438,2]
[335356506,1724157043098,-500.0,0.00016438,2]
[335356508,1724157043107,-500.0,0.00016438,2]
[335356509,1724157043116,-500.0,0.00016438,2]
[335356510,1724157043125,-1784.81,0.00016438,2]
[335356511,1724157043134,-506.23259312,0.00016438,2]
[335356512,1724157043144,-637.71425816,0.00016438,2]
[335356513,1724157043154,-500.0,0.00016438,2]
[335356514,1724157043163,-500.0,0.00016438,2]
[335356515,1724157043173,-500.0,0.00016438,2]
[335356516,1724157043182,-500.0,0.00016438,2]
[335356517,1724157043191,-502.13502828,0.00016438,2]
[335356519,1724157043202,-500.54268529,0.00016438,2]
[335356520,1724157043211,-500.0,0.00016438,2]
[335356521,1724157043221,-500.0,0.00016438,2]
[335356522,1724157043230,-500.0,0.00016438,2]
[335356524,1724157043239,-500.0,0.00016438,2]
[335356526,1724157043248,-500.0,0.00016438,2]
[335356528,1724157043257,-500.0,0.00016438,2]
[335356530,1724157043267,-308.82950679,0.00016438,2]
[335356532,1724157043276,-1054.7,0.00016438,2]
[335356533,1724157043285,-500.0,0.00016438,2]
[335356534,1724157043294,-502.38509024,0.00016438,2]
[335356535,1724157043304,-500.0,0.00016438,2]
[335356537,1724157043313,-500.5986862,0.00016438,2]
[335356538,1724157043324,-1164.12,0.00016438,2]
[335356539,1724157043333,-500.0,0.00016438,2]
[335356540,1724157043343,-500.0,0.00016438,2]
[335356541,1724157043352,-500.0,0.00016438,2]
[335356542,1724157043361,-500.0,0.00016438,2]
[335356544,1724157043371,-500.0,0.00016438,2]
[335356545,1724157043381,-469.95727674,0.00016438,2]
[335356546,1724157043390,-506.31424299,0.00016438,2]
[335356547,1724157043400,-500.0,0.00016438,2]
[335356548,1724157043409,-500.0,0.00016438,2]
[335356549,1724157043419,-320.77073065,0.00016438,2]
[335356551,1724157043429,-500.0,0.00016438,2]
[335356553,1724157043438,-509.69570697,0.00016438,2]
[335356555,1724157043447,-531.62,0.00016438,2]
[335356556,1724157043457,-502.38568884,0.00016438,2]
[335356557,1724157043467,-500.0,0.00016438,2]
[335356558,1724157043476,-500.0,0.00016438,2]
[335356559,1724157043486,-500.0,0.00016438,2]
[335356560,1724157043495,-500.0,0.00016438,2]
[335356561,1724157043505,-315.60884849,0.00016438,2]
[335356562,1724157043514,-624.73401306,0.00016438,2]
[335356563,1724157043525,-605.38962245,0.00016438,2]
[335356564,1724157043534,-500.0,0.00016438,2]
[335356565,1724157043544,-500.0,0.00016438,2]
[335356566,1724157043554,-503.08874414,0.00016438,2]
[335356567,1724157043563,-500.0,0.00016438,2]
[335356568,1724157043573,-500.0,0.00016438,2]
[335356569,1724157043584,-500.0,0.00016438,2]
[335356571,1724157043593,-500.0,0.00016438,2]
[335356573,1724157043602,-500.11931272,0.00016438,2]
[335356574,1724157043613,-500.0,0.00016438,2]
[335356575,1724157043622,-600.0,0.00016438,2]
[335356576,1724157043632,-500.0,0.00016438,2]
[335356577,1724157043642,-521.59163149,0.00016438,2]
[335356578,1724157043651,-513.15007194,0.00016438,2]
[335356579,1724157043661,-500.0,0.00016438,2]
[335356580,1724157043671,-500.0,0.00016438,2]
[335356581,1724157043681,-500.0,0.00016438,2]
[335356582,1724157043691,-507.01989121,0.00016438,2]
[335356583,1724157043701,-503.18098062,0.00016438,2]
[335356584,1724157043710,-328.18773977,0.00016438,2]
[335356585,1724157043722,-500.0,0.00016438,2]
[335356586,1724157043731,-500.0,0.00016438,2]
[335356587,1724157043741,-500.0,0.00016438,2]
[335356588,1724157043751,-500.0,0.00016438,2]
[335356589,1724157043760,-512.00156767,0.00016438,2]
[335356590,1724157043770,-507.46312568,0.00016438,2]
[335356591,1724157043779,-500.0,0.00016438,2]
[335356592,1724157043789,-500.0,0.00016438,2]
[335356593,1724157043798,-500.0,0.00016438,2]
[335356594,1724157043808,-500.0,0.00016438,2]
[335356595,1724157043818,-500.0,0.00016438,2]
[335356596,1724157043828,-500.0,0.00016438,2]
[335356597,1724157043838,-500.0,0.00016438,2]
[335356598,1724157043847,-531.08991792,0.00016438,2]
[335356599,1724157043857,-500.0,0.00016438,2]
[335356600,1724157043868,-500.0,0.00016438,2]
[335356602,1724157043882,-500.0,0.00016438,2]
[335356604,1724157043892,-3094.32,0.00016438,2]
[335356606,1724157043901,-547.15,0.00016438,2]
[335356608,1724157043911,-500.0,0.00016438,2]
[335356609,1724157043922,-500.0,0.00016438,2]
[335356610,1724157043931,-500.0,0.00016438,2]
[335356611,1724157043941,-501.39772472,0.00016438,2]
[335356612,1724157043953,-500.0,0.00016438,2]
[335356613,1724157043962,-500.0,0.00016438,2]
[335356614,1724157043972,-500.0,0.00016438,2]
[335356615,1724157043981,-501.13588741,0.00016438,2]
[335356617,1724157043990,-505.01381328,0.00016438,2]
[335356619,1724157044001,-708.97,0.00016438,2]
[335356620,1724157044013,-500.0,0.00016438,2]
[335356621,1724157044022,-237.0707362,0.00016438,2]
[335356622,1724157044033,-500.0,0.00016438,2]
[335356623,1724157044045,-503.82597074,0.00016438,2]
[335356624,1724157044055,-500.0,0.00016438,2]
[335356625,1724157044065,-500.0,0.00016438,2]
[335356626,1724157044075,-229.05070244,0.00016438,2]
[335356627,1724157044084,-500.0,0.00016438,2]
[335356628,1724157044121,-500.0,0.00016438,2]
[335356629,1724157044131,-500.0,0.00016438,2]
[335356630,1724157044140,-500.0,0.00016438,2]
[335356631,1724157044150,-500.0,0.00016438,2]
[335356632,1724157044161,-500.0,0.00016438,2]
[335356633,1724157044172,-502.79927189,0.00016438,2]
[335356634,1724157044182,-500.0,0.00016438,2]
[335356635,1724157044191,-501.60259315,0.00016438,2]
[335356636,1724157044201,-500.0,0.00016438,2]
[335356637,1724157044214,-520.75865901,0.00016438,2]
[335356638,1724157044225,-500.57930303,0.00016438,2]
[335356639,1724157044235,-496.53705127,0.00016438,2]
[335356640,1724157044247,-500.0,0.00016438,2]
[335356641,1724157044259,-500.0,0.00016438,2]
[335356642,1724157044270,-501.53558859,0.00016438,2]
[335356643,1724157044280,-500.0,0.00016438,2]
[335356644,1724157044289,-500.0,0.00016438,2]
[335356645,1724157044300,-500.0,0.00016438,2]
[335356646,1724157044311,-500.0,0.00016438,2]
[335356647,1724157044321,-500.0,0.00016438,2]
[335356648,1724157044333,-500.0,0.00016438,2]
[335356649,1724157044343,-500.0,0.00016438,2]
[335356650,1724157044354,-500.0,0.00016438,2]
[335356651,1724157044364,-501.50501301,0.00016438,2]
[335356652,1724157044374,-500.0,0.00016438,2]
[335356653,1724157044385,-500.0,0.00016438,2]
[335356654,1724157044396,-500.0,0.00016438,2]
[335356655,1724157044407,-500.0,0.00016438,2]
[335356656,1724157044417,-500.0,0.00016438,2]
[335356657,1724157044428,-500.0,0.00016438,2]
[335356658,1724157044439,-500.0,0.00016438,2]
[335356659,1724157044449,-500.0,0.00016438,2]
[335356660,1724157044459,-500.0,0.00016438,2]
[335356661,1724157044470,-504.17105781,0.00016438,2]
[335356662,1724157044483,-500.0,0.00016438,2]
[335356663,1724157044494,-500.0,0.00016438,2]
[335356664,1724157044504,-500.0,0.00016438,2]
[335356665,1724157044515,-500.0,0.00016438,2]
[335356666,1724157044526,-500.0,0.00016438,2]
[335356667,1724157044537,-500.0,0.00016438,2]
[335356668,1724157044547,-500.0,0.00016438,2]
[335356669,1724157044558,-870.17,0.00016438,2]
[335356670,1724157044569,-740.4,0.00016438,2]
[335356671,1724157044580,-500.0,0.00016438,2]
[335356672,1724157044590,-500.0,0.00016438,2]